bitfinex/quotes_SOLUSD_20250710
["timestamp","ask_amount","ask_price","bid_price","bid_amount"]
[1752125238160,0.03,157.59,157.58,38.14877789]
[1752125238367,0.03,157.59,157.58,70.22877789]
[1752125241073,0.03,157.59,157.58,58.08]
[1752125241271,0.03,157.59,157.58,70.22877789]
[1752125247085,0.03,157.59,157.58,70.28877789]
[1752125249384,0.03,157.59,157.58,38.14877789]
[1752125249684,0.03,157.59,157.58,70.26877789]
[1752125254572,0.03,157.59,157.58,63.9227949]
[1752125256684,0.03,157.59,157.58,32.12]
[1752125260280,0.03,157.59,157.58,37.9227949]
[1752125263903,0.03,157.59,157.58,32.12]
[1752125265795,0.03,157.59,157.58,37.9227949]
[1752125269416,0.03,157.59,157.58,5.8027949]
[1752125269612,0.03,157.59,157.58,37.9227949]
[1752125273996,0.03,157.59,157.58,32.12]
[1752125274196,0.03,157.59,157.58,37.9227949]
[1752125274398,0.03,157.59,157.58,32.12]
[1752125274610,0.03,157.59,157.58,37.9227949]
[1752125275511,0.03,157.59,157.58,5.8027949]
[1752125275715,0.03,157.59,157.58,37.9027949]
[1752125278416,0.03,157.59,157.58,44.24877789]
[1752125278923,0.03,157.59,157.58,42.15840724]
[1752125281818,0.03,157.59,157.58,35.81242425]
[1752125284727,0.03,157.59,157.58,32.1]
[1752125285335,0.03,157.59,157.58,26.0]
[1752125285534,0.03,157.59,157.58,58.08]
[1752125286051,0.03,157.59,157.57,26.0]
[1752125286224,3.74242425,157.59,157.58,32.08]
[1752125286403,3.74242425,157.59,157.58,32.06]
[1752125286599,0.03,157.59,157.58,32.06]
[1752125288221,0.03,157.59,157.57,26.0]
[1752125288413,0.03,157.59,157.58,32.08]
[1752125290128,0.03,157.59,157.58,32.06]
[1752125291524,0.03,157.59,157.57,26.0]
[1752125291725,0.03,157.59,157.58,32.06]
[1752125292525,0.03,157.59,157.57,26.0]
[1752125292728,0.03,157.59,157.58,32.06]
[1752125292910,3.74242425,157.59,157.58,32.06]
[1752125293431,0.14216157,157.58,157.56,0.06]
[1752125293627,3.71242425,157.57,157.56,0.06]
[1752125294309,0.14216157,157.57,157.56,0.06]
[1752125294509,3.85458582,157.57,157.56,0.06]
[1752125295224,10.20097155,157.57,157.56,0.06]
[1752125295416,16.71856541,157.57,157.56,0.06]
[1752125295819,10.20097155,157.57,157.56,0.06]
[1752125296934,12.29442331,157.57,157.56,0.06]
[1752125297326,6.4885473,157.57,157.56,0.06]
[1752125297627,12.29442331,157.57,157.56,0.06]
[1752125305948,0.03,157.59,157.56,0.06]
[1752125306153,0.14216157,157.58,157.56,0.06]
[1752125306850,5.83587601,157.59,157.56,0.06]
[1752125307157,12.18175395,157.59,157.56,0.06]
[1752125308322,5.80587601,157.58,157.56,0.06]
[1752125309220,5.97803758,157.59,157.56,0.06]
[1752125311042,12.32376734,157.59,157.56,0.06]
[1752125311633,5.83587601,157.59,157.56,0.06]
[1752125316244,0.03,157.59,157.56,5.86587601]
[1752125316549,0.03,157.59,157.57,5.80587601]
[1752125317850,0.03,157.59,157.57,37.90587601]
[1752125318856,0.03,157.59,157.57,35.812932]
[1752125319547,0.03,157.59,157.57,32.1]
[1752125319741,3.712932,157.58,157.56,0.06]
[1752125320057,3.85509357,157.57,157.56,0.06]
[1752125320448,10.2014793,157.57,157.56,0.06]
[1752125322946,12.29341218,157.57,157.56,0.06]
[1752125323149,6.4885473,157.57,157.56,0.06]
[1752125323541,12.29341218,157.57,157.56,0.06]
[1752125332166,12.32341218,157.57,157.56,0.06]
[1752125342866,10.23409808,157.57,157.56,0.06]
[1752125344169,6.5185473,157.57,157.56,0.06]
[1752125344366,10.23409808,157.57,157.56,0.06]
[1752125348867,16.67966331,157.57,157.56,0.06]
[1752125351851,35.32931217,157.57,157.56,0.06]
[1752125352052,67.40931217,157.57,157.55,0.06]
[1752125352249,10.30327758,157.56,157.55,0.06]
[1752125353075,16.6500661,157.56,157.55,0.06]
[1752125355373,16.63128818,157.56,157.55,0.06]
[1752125357662,35.28093704,157.56,157.55,0.06]
[1752125367260,67.34093704,157.56,157.55,0.06]
[1752125367962,0.14216157,157.54,157.5,0.06]
[1752125368165,22.50736121,157.51,157.5,0.06]
[1752125369483,28.85616446,157.51,157.5,0.06]
[1752125370867,30.95046575,157.51,157.5,0.06]
[1752125375183,0.14216157,157.51,157.5,0.06]
[1752125375493,0.14216157,157.52,157.5,0.06]
[1752125376269,6.49059996,157.52,157.5,0.06]
[1752125377076,0.14216157,157.52,157.5,0.06]
[1752125389781,6.3773629,157.55,157.51,5.80985207]
[1752125389979,18.82181043,157.55,157.52,5.80985207]
[1752125390179,18.82181043,157.55,157.51,5.80985207]
[1752125390180,25.16906644,157.55,157.51,5.80985207]
[1752125390687,30.97891851,157.55,157.51,5.80985207]
[1752125390893,28.88508014,157.55,157.51,3.7160137]
[1752125394876,0.17216157,157.55,157.52,3.7160137]
[1752125395082,0.03,157.55,157.54,3.7160137]
[1752125408211,0.03,157.55,157.54,10.06360796]
[1752125408589,0.03,157.55,157.54,42.22360796]
[1752125410816,0.03,157.55,157.54,26.0]
[1752125410994,0.03,157.55,157.51,6.0992]
[1752125410995,18.79181043,157.54,157.5,0.06]
[1752125411304,3.85817527,157.51,157.5,0.06]
[1752125411507,22.50782413,157.51,157.5,0.06]
[1752125413017,30.95090028,157.51,157.5,0.06]
[1752125413311,25.14061368,157.51,157.5,0.06]
[1752125413511,30.95090028,157.51,157.5,0.06]
[1752125414300,0.14216157,157.51,157.5,0.06]
[1752125414510,6.49096482,157.51,157.5,0.06]
[1752125415518,12.30125142,157.51,157.5,0.06]
[1752125418293,12.15882432,157.52,157.5,0.06]
[1752125418500,0.14216157,157.51,157.5,0.06]
[1752125418811,12.15882432,157.52,157.5,0.06]
[1752125419011,0.14216157,157.51,157.5,0.06]
[1752125421611,6.49096482,157.51,157.5,0.06]
[1752125422210,0.14216157,157.51,157.5,0.06]
[1752125422812,6.49096482,157.51,157.5,0.06]
[1752125424508,0.14216157,157.51,157.5,0.06]
[1752125425320,6.49096482,157.51,157.5,0.06]
[1752125426323,0.14216157,157.51,157.5,0.06]
[1752125428227,6.49096482,157.51,157.5,0.06]
[1752125429604,12.30125142,157.51,157.5,0.06]
[1752125433526,30.95090028,157.51,157.5,0.06]
[1752125436123,25.14061368,157.51,157.5,0.06]
[1752125436314,6.49096482,157.51,157.5,0.06]
[1752125436716,6.34880325,157.51,157.5,0.06]
[1752125437023,6.49096482,157.51,157.5,0.06]
[1752125440827,30.95090028,157.51,157.5,0.06]
[1752125446438,25.14061368,157.51,157.5,0.06]
[1752125452034,30.95090028,157.51,157.5,0.06]
[1752125454233,37.52931852,157.51,157.5,0.06]
[1752125456844,35.43717288,157.51,157.5,0.06]
[1752125459045,31.71903192,157.51,157.5,0.06]
[1752125459244,25.14061368,157.51,157.5,0.06]
[1752125459541,31.73930842,157.51,157.5,0.06]
[1752125460423,35.45744938,157.51,157.5,0.06]
[1752125462425,31.73930842,157.51,157.5,0.06]
[1752125462624,35.45744938,157.51,157.5,0.06]
[1752125463644,0.14216157,157.5,157.45,26.0]
[1752125463842,3.71814096,157.47,157.45,26.0]
[1752125464226,10.3168357,157.47,157.45,26.0]
[1752125464545,3.71814096,157.47,157.45,26.0]
[1752125464743,0.14216157,157.44,157.42,8.0797]
[1752125464956,5.81488555,157.43,157.4,0.06]
[1752125465345,5.95704712,157.44,157.4,0.06]
[1752125465528,5.95704712,157.44,157.4,5.87488555]
[1752125465832,6.35202947,157.43,157.4,5.87488555]
[1752125467343,12.30880434,157.44,157.4,5.87488555]
[1752125467861,6.49391879,157.44,157.4,5.87488555]
[1752125468033,0.14216157,157.44,157.41,5.81488555]
[1752125469244,30.81539899,157.46,157.42,5.81488555]
[1752125469437,6.3500127,157.48,157.45,5.81488555]
[1752125469845,6.349661,157.49,157.46,5.81488555]
[1752125470149,12.87738531,157.49,157.46,5.81488555]
[1752125470545,0.14216157,157.48,157.46,5.81488555]
[1752125470754,12.87738531,157.49,157.46,5.81488555]
[1752125470940,12.87738531,157.49,157.44,6.35152557]
[1752125471251,0.14216157,157.48,157.46,5.81488555]
[1752125474059,6.49220499,157.48,157.45,5.81488555]
[1752125474852,0.14216157,157.48,157.45,5.81488555]
[1752125476362,6.49230595,157.48,157.45,5.81488555]
[1752125476555,12.3071915,157.48,157.44,5.81488555]
[1752125483664,12.3071915,157.48,157.44,5.87488555]
[1752125485762,6.49230595,157.48,157.44,5.87488555]
[1752125485970,12.3071915,157.48,157.44,5.87488555]
[1752125486343,6.49230595,157.48,157.45,5.81488555]
[1752125490377,6.34969179,157.49,157.46,5.81488555]
[1752125490572,12.8996908,157.49,157.46,5.81488555]
[1752125491662,18.79181043,157.48,157.45,5.81488555]
[1752125491871,24.60669598,157.48,157.44,0.06]
[1752125492456,24.60669598,157.46,157.44,0.06]
[1752125492955,5.95704712,157.45,157.44,0.06]
[1752125493362,0.14216157,157.45,157.44,0.06]
[1752125493569,12.30826973,157.45,157.44,0.06]
[1752125494880,30.95791859,157.45,157.44,0.06]
[1752125503164,37.48868103,157.45,157.44,0.06]
[1752125509668,31.67379548,157.45,157.44,0.06]
[1752125509864,37.48868103,157.45,157.44,0.06]
[1752125512903,35.39493512,157.45,157.44,0.06]
[1752125517189,31.67379548,157.45,157.44,0.06]
[1752125517384,35.39493512,157.45,157.44,0.06]
[1752125518203,31.67379548,157.45,157.44,0.06]
[1752125518500,35.39493512,157.45,157.44,0.06]
[1752125520293,6.67292401,157.45,157.44,0.06]
[1752125520492,0.14216157,157.45,157.44,0.06]
[1752125520696,6.49338418,157.45,157.44,0.06]
[1752125520882,0.14216157,157.45,157.44,0.06]
[1752125521102,6.49338418,157.45,157.44,0.06]
[1752125527012,0.14216157,157.45,157.44,0.06]
[1752125527612,6.49338418,157.45,157.44,0.06]
[1752125536411,13.0551259,157.45,157.44,0.06]
[1752125536912,6.49338418,157.45,157.44,0.06]
[1752125537321,13.0551259,157.45,157.44,0.06]
[1752125537700,6.49338418,157.45,157.44,0.06]
[1752125537913,13.0551259,157.45,157.44,0.06]
[1752125538606,6.49338418,157.45,157.44,0.06]
[1752125538806,13.0551259,157.45,157.44,0.06]
[1752125539321,6.49338418,157.45,157.44,0.06]
[1752125539617,13.0551259,157.45,157.44,0.06]
[1752125540005,6.49338418,157.45,157.44,0.06]
[1752125540321,13.0551259,157.45,157.44,0.06]
[1752125540700,6.49338418,157.45,157.44,0.06]
[1752125550632,13.01977478,157.45,157.44,0.06]
[1752125555232,6.5263906,157.45,157.44,3.78113964]
[1752125555438,6.52177724,157.47,157.44,5.30743964]
[1752125555613,6.52177724,157.49,157.46,3.72113964]
[1752125555927,6.52177724,157.48,157.47,3.72113964]
[1752125556134,6.52177724,157.49,157.47,3.72113964]
[1752125556337,6.52177724,157.48,157.44,23.00675856]
[1752125556551,6.55177724,157.5,157.47,3.72113964]
[1752125556714,12.90098358,157.5,157.49,3.72113964]
[1752125556909,12.90098358,157.5,157.48,3.72113964]
[1752125557115,6.52177724,157.49,157.48,3.72113964]
[1752125557410,6.37920634,157.5,157.48,3.72113964]
[1752125557608,12.90098358,157.5,157.48,3.72113964]
[1752125557814,29.03049901,157.49,157.45,3.72113964]
[1752125558017,0.14216157,157.47,157.45,3.72113964]
[1752125559653,6.49263311,157.47,157.45,3.72113964]
[1752125564934,6.49263311,157.47,157.44,27.5863]
[1752125565137,6.49263311,157.47,157.45,3.72113964]
[1752125565643,6.49230504,157.48,157.45,3.72113964]
[1752125570556,6.49230504,157.48,157.44,0.06]
[1752125571058,6.49230504,157.48,157.45,3.72113964]
[1752125572452,0.14216157,157.48,157.46,3.72113964]
[1752125572633,6.35001361,157.48,157.46,3.72113964]
[1752125574850,0.14216157,157.48,157.46,3.72113964]
[1752125575430,6.34978261,157.49,157.47,3.72113964]
[1752125578153,0.14216157,157.49,157.47,3.72113964]
[1752125583428,0.03,157.5,157.48,3.72113964]
[1752125583633,0.17216157,157.5,157.48,3.72113964]
[1752125584861,6.52137054,157.5,157.48,3.72113964]
[1752125585334,6.52137054,157.5,157.47,3.72113964]
[1752125588169,6.52137054,157.5,157.45,7.88716505]
[1752125588474,6.52137054,157.5,157.48,3.72113964]
[1752125588665,6.52137054,157.5,157.45,7.88716505]
[1752125588868,6.52137054,157.5,157.48,3.72113964]
[1752125592970,6.52137054,157.5,157.45,7.88714979]
[1752125593169,6.52137054,157.5,157.48,3.72113964]
[1752125598577,6.52137054,157.5,157.47,0.06]
[1752125598791,6.52137054,157.5,157.48,3.72113964]
[1752125601285,6.52137054,157.5,157.47,0.06]
[1752125601584,6.52137054,157.5,157.48,3.72113964]
[1752125606070,6.52137054,157.5,157.47,0.06]
[1752125606071,0.14216157,157.48,157.47,0.06]
[1752125606386,29.03272788,157.48,157.47,0.06]
[1752125608469,35.38274058,157.48,157.47,0.06]
[1752125617404,51.25777233,157.48,157.44,0.06]
[1752125617577,22.51295007,157.45,157.44,0.06]
[1752125618092,29.1206187,157.45,157.44,0.06]
[1752125619072,35.47184131,157.45,157.44,0.06]
[1752125621089,28.86417268,157.45,157.44,0.06]
[1752125621299,35.45344162,157.45,157.44,0.06]
[1752125621499,28.86417268,157.45,157.44,0.06]
[1752125622095,35.45310815,157.45,157.44,0.06]
[1752125622901,28.86417268,157.45,157.44,0.06]
[1752125637809,25.14303304,157.45,157.44,0.06]
[1752125638014,28.86417268,157.45,157.44,0.06]
[1752125639519,35.44669775,157.45,157.44,0.06]
[1752125640095,28.86417268,157.45,157.44,0.06]
[1752125644411,35.45152507,157.45,157.44,0.06]
[1752125648826,31.73038543,157.45,157.44,0.06]
[1752125649021,35.45152507,157.45,157.44,0.06]
[1752125673320,67.47152507,157.45,157.44,0.06]
[1752125674447,67.47152507,157.45,157.4,0.06]
[1752125674448,18.79181043,157.44,157.4,0.06]
[1752125674631,22.51295007,157.41,157.4,0.06]
[1752125674834,29.10030246,157.41,157.4,0.06]
[1752125675553,35.453139,157.41,157.4,0.06]
[1752125675748,31.73199936,157.41,157.4,0.06]
[1752125681151,35.453139,157.41,157.4,0.06]
[1752125681541,31.73199936,157.41,157.4,0.06]
[1752125685251,25.37916282,157.41,157.4,0.06]
[1752125686560,31.73199936,157.41,157.4,0.06]
[1752125692256,25.37916282,157.41,157.4,0.06]
[1752125692469,25.00115551,157.45,157.4,0.06]
[1752125692760,0.14216157,157.43,157.42,3.72113964]
[1752125695039,0.14216157,157.44,157.42,3.72113964]
[1752125698768,18.82181043,157.47,157.43,3.72113964]
[1752125698969,0.14216157,157.45,157.44,3.72113964]
[1752125701053,0.14216157,157.46,157.44,3.72113964]
[1752125703681,0.14216157,157.46,157.42,6.35207902]
[1752125703968,0.14216157,157.46,157.44,3.72113964]
[1752125704775,0.14216157,157.46,157.41,6.35283654]
[1752125705075,0.14216157,157.46,157.43,3.72113964]
[1752125707370,3.86330121,157.46,157.43,3.72113964]
[1752125707870,0.14216157,157.46,157.43,3.72113964]
[1752125708278,13.15044521,157.46,157.43,3.72113964]
[1752125708880,16.87158485,157.46,157.42,3.72113964]
[1752125709081,3.86330121,157.44,157.4,11.7876294]
[1752125710270,0.14216157,157.44,157.41,3.72113964]
[1752125713068,0.14216157,157.44,157.4,8.06648976]
[1752125713266,0.14216157,157.44,157.41,3.72113964]
[1752125717477,0.14216157,157.44,157.41,10.07392419]
[1752125719865,0.14216157,157.44,157.41,3.72113964]
[1752125722586,22.51295007,157.45,157.41,10.0739685]
[1752125722768,18.79181043,157.45,157.42,3.72113964]
[1752125730177,25.14306816,157.45,157.42,3.72113964]
[1752125733186,18.79181043,157.45,157.42,3.72113964]
[1752125735470,25.14305179,157.45,157.42,3.72113964]
[1752125737491,6.67326425,157.44,157.42,3.72113964]
[1752125739897,6.67326425,157.44,157.43,3.72113964]
[1752125739898,6.81542582,157.44,157.43,3.72113964]
[1752125743106,6.81542582,157.44,157.42,3.72113964]
[1752125746322,6.67326425,157.44,157.43,3.72113964]
[1752125748408,0.03,157.45,157.43,82.95772767]
[1752125748709,0.03,157.45,157.44,18.6056982]
[1752125748906,0.03,157.45,157.44,24.95732421]
[1752125749813,0.03,157.45,157.44,32.84862421]
[1752125755815,0.03,157.45,157.44,14.24292601]
[1752125755998,0.03,157.45,157.44,43.65416565]
[1752125756199,0.03,157.45,157.44,3.72113964]
[1752125756406,0.03,157.45,157.44,35.72113964]
[1752125757222,0.03,157.45,157.44,32.0]
[1752125757408,0.03,157.45,157.44,35.72113964]
[1752125757714,0.03,157.45,157.44,3.72113964]
[1752125757921,0.03,157.45,157.44,35.72113964]
[1752125760617,0.03,157.45,157.44,42.07276565]
[1752125761331,0.03,157.45,157.44,38.35162601]
[1752125761497,0.03,157.45,157.44,10.07276565]
[1752125761698,0.03,157.45,157.44,42.07276565]
[1752125763421,0.03,157.45,157.44,35.72113964]
[1752125766431,0.03,157.45,157.44,42.07276565]
[1752125767521,0.03,157.45,157.44,42.13276565]
[1752125768026,0.03,157.45,157.44,38.41162601]
[1752125768235,0.03,157.45,157.44,57.01732421]
[1752125768414,0.03,157.45,157.44,38.41162601]
[1752125768620,0.03,157.45,157.44,35.78113964]
[1752125768936,0.03,157.45,157.44,35.76113964]
[1752125769618,0.03,157.45,157.44,3.78113964]
[1752125769941,0.03,157.45,157.44,0.06]
[1752125770526,0.17216157,157.45,157.44,0.06]
[1752125770732,0.03,157.45,157.44,0.06]
[1752125770920,0.03,157.45,157.44,3.78113964]
[1752125772917,0.03,157.45,157.44,32.06]
[1752125774037,0.03,157.45,157.44,0.06]
[1752125780728,18.82181043,157.45,157.44,0.06]
[1752125780926,29.19746303,157.45,157.44,0.06]
[1752125781130,25.47632339,157.45,157.44,0.06]
[1752125783020,31.827546,157.45,157.44,0.06]
[1752125783326,35.54868564,157.45,157.44,0.06]
[1752125786942,6.68451296,157.45,157.44,3.78113964]
[1752125787130,0.03,157.45,157.44,3.78113964]
[1752125787334,6.52338418,157.45,157.44,0.06]
[1752125787862,16.88039686,157.45,157.44,0.06]
[1752125790240,10.24452382,157.45,157.44,0.06]
[1752125790438,6.52338418,157.45,157.44,0.06]
[1752125794457,25.17303304,157.45,157.44,0.06]
[1752125796945,6.52338418,157.45,157.44,0.06]
[1752125802379,13.1643728,157.45,157.44,0.06]
[1752125803753,6.52338418,157.45,157.44,0.06]
[1752125808166,13.19004394,157.45,157.44,0.06]
[1752125814680,6.83882133,157.45,157.44,0.06]
[1752125815068,13.19004394,157.45,157.44,0.06]
[1752125818880,35.56083244,157.45,157.44,0.06]
[1752125827379,31.8396928,157.45,157.44,0.06]
[1752125828804,6.83882133,157.45,157.44,3.78113964]
[1752125829176,6.83882133,157.45,157.44,0.06]
[1752125829377,6.83882133,157.45,157.44,3.78113964]
[1752125831912,0.17216157,157.45,157.44,3.78113964]
[1752125837088,0.03,157.45,157.44,10.13276565]
[1752125837296,0.03,157.45,157.44,6.41162601]
[1752125837594,0.03,157.45,157.44,10.13276565]
[1752125845014,0.03,157.45,157.44,3.78113964]
[1752125845390,0.03,157.45,157.44,10.13276565]
[1752125848210,0.03,157.45,157.44,3.78113964]
[1752125850903,0.03,157.45,157.44,0.06]
[1752125851217,0.03,157.45,157.44,3.78113964]
[1752125853922,0.03,157.45,157.44,35.76113964]
[1752125855421,0.03,157.45,157.44,32.04]
[1752125855624,0.03,157.45,157.44,0.06]
[1752125856120,25.52073263,157.45,157.44,0.06]
[1752125857395,35.59309488,157.45,157.44,0.06]
[1752125863636,31.87195524,157.45,157.44,0.06]
[1752125887954,31.84914427,157.45,157.44,0.06]
[1752125896342,35.57028391,157.45,157.44,0.06]
[1752125898971,31.84914427,157.45,157.44,0.06]
[1752125905365,35.57028391,157.45,157.44,0.06]
[1752125905666,67.55028391,157.45,157.44,0.06]
[1752125908077,35.57028391,157.45,157.44,0.06]
[1752125922187,35.57028391,157.45,157.44,1e-08]
[1752125922496,28.89417268,157.45,157.44,1e-08]
[1752125922782,35.5808108,157.45,157.44,1e-08]
[1752125928000,31.85967116,157.45,157.44,1e-08]
[1752125928684,31.71750959,157.45,157.44,1e-08]
[1752125928886,31.85967116,157.45,157.44,1e-08]
[1752125933687,35.5808108,157.45,157.44,1e-08]
[1752125936404,31.85967116,157.45,157.44,1e-08]
[1752125936611,67.5608108,157.45,157.44,1e-08]
[1752125947926,67.59079845,157.45,157.44,1e-08]
[1752125956733,63.86965881,157.45,157.44,1e-08]
[1752125956912,67.59079845,157.45,157.44,1e-08]
[1752125968231,93.59079845,157.45,157.44,1e-08]
[1752125968931,44.79181043,157.42,157.41,0.06]
[1752125969125,87.18957584,157.42,157.41,0.06]
[1752125970321,93.54200882,157.42,157.41,0.06]
[1752125979424,89.82086918,157.42,157.41,0.06]
[1752125980644,57.86086918,157.42,157.41,0.06]
[1752125980940,31.71870761,157.42,157.41,0.06]
[1752125981450,31.86086918,157.42,157.41,0.06]
[1752125981747,31.71870761,157.42,157.41,0.06]
[1752125981971,31.86086918,157.42,157.41,0.06]
[1752125982347,31.86086918,157.42,157.41,3.78113964]
[1752125983122,31.86086918,157.42,157.41,0.06]
[1752125983334,31.86086918,157.42,157.41,3.78113964]
[1752125984153,25.14424341,157.42,157.41,3.78113964]
[1752125984954,18.79181043,157.42,157.41,3.78113964]
[1752125985554,0.03,157.44,157.41,18.03342727]
[1752125985858,18.67964886,157.44,157.43,3.72113964]
[1752125986152,31.87247174,157.44,157.43,3.72113964]
[1752125989540,25.17343644,157.44,157.43,3.72113964]
[1752126000461,0.14216157,157.43,157.41,7.9595]
[1752126000662,0.14216157,157.43,157.42,3.72113964]
[1752126002266,0.14216157,157.43,157.41,7.9595]
[1752126002463,0.14216157,157.43,157.42,3.72113964]
[1752126007072,18.82181043,157.44,157.42,3.72113964]
[1752126007273,18.82181043,157.44,157.43,3.72113964]
[1752126008072,6.52378758,157.44,157.43,3.72113964]
[1752126008264,18.82181043,157.44,157.43,3.72113964]
[1752126009362,25.17343644,157.44,157.43,3.72113964]
[1752126014972,25.17343644,157.44,157.41,7.9595]
[1752126015171,25.17343644,157.44,157.43,3.72113964]
[1752126016487,25.17343644,157.44,157.41,7.9595]
[1752126016683,25.17343644,157.44,157.43,3.72113964]
[1752126016868,25.17343644,157.44,157.41,7.9595]
[1752126017075,25.17343644,157.44,157.43,3.72113964]
[1752126021293,31.88736288,157.44,157.43,3.72113964]
[1752126024493,31.88736288,157.44,157.41,1.6647]
[1752126024692,25.17343644,157.44,157.43,3.72113964]
[1752126024894,31.88578709,157.44,157.43,3.72113964]
[1752126025879,31.88578709,157.44,157.43,3.78113964]
[1752126026794,31.88578709,157.44,157.43,0.06]
[1752126026986,31.88578709,157.44,157.43,3.78113964]
[1752126032197,25.53416108,157.44,157.43,3.78113964]
[1752126034595,6.74235065,157.44,157.43,25.01772767]
[1752126034800,0.03,157.44,157.43,25.01772767]
[1752126042306,0.03,157.47,157.43,25.01772767]
[1752126042502,0.03,157.47,157.46,31.30093964]
[1752126042711,0.03,157.47,157.46,63.24093964]
[1752126043597,0.03,157.47,157.46,69.59175889]
[1752126045100,0.03,157.47,157.46,59.5198]
[1752126045305,0.03,157.47,157.46,63.24093964]
[1752126046408,0.03,157.47,157.46,61.66113964]
[1752126047211,0.03,157.47,157.46,35.66113964]
[1752126056014,0.03,157.47,157.46,3.72113964]
[1752126056203,0.03,157.47,157.46,35.66113964]
[1752126058818,0.03,157.47,157.46,3.72113964]
[1752126059220,0.03,157.47,157.46,35.66113964]
[1752126059421,0.03,157.47,157.46,31.94]
[1752126059622,18.82181043,157.47,157.44,3.78113964]
[1752126059803,18.82181043,157.47,157.44,35.72113964]
[1752126060407,22.54295007,157.47,157.44,0.06]
[1752126061023,0.14216157,157.45,157.44,0.06]
[1752126062024,22.51295007,157.45,157.44,0.06]
[1752126062214,29.23120219,157.45,157.44,0.06]
[1752126062615,25.51006255,157.45,157.44,0.06]
[1752126063516,31.86128516,157.45,157.44,0.06]
[1752126064552,25.14303304,157.45,157.44,0.06]
[1752126071332,31.81985318,157.45,157.44,0.06]
[1752126074812,35.54099282,157.45,157.44,0.06]
[1752126076738,35.54099282,157.45,157.43,0.06]
[1752126076913,61.12977021,157.44,157.43,0.06]
[1752126078235,67.48139622,157.44,157.43,0.06]
[1752126085531,60.80457608,157.44,157.43,0.06]
[1752126089444,67.4372802,157.44,157.43,0.06]
[1752126098138,31.77614056,157.44,157.43,0.06]
[1752126098322,25.14343644,157.44,157.43,3.78113964]
[1752126098516,25.14343644,157.44,157.43,0.06]
[1752126098721,25.00127487,157.44,157.43,0.06]
[1752126099133,25.14343644,157.44,157.43,0.06]
[1752126100038,28.86457608,157.44,157.43,0.06]
[1752126100250,35.51321476,157.44,157.43,0.06]
[1752126102821,31.79207512,157.44,157.43,0.06]
[1752126103026,35.51321476,157.44,157.43,0.06]
[1752126106634,18.79181043,157.43,157.41,0.06]
[1752126106839,29.16158875,157.42,157.41,0.06]
[1752126108759,35.51402173,157.42,157.41,0.06]
[1752126111058,31.79288209,157.42,157.41,0.06]
[1752126111259,35.51402173,157.42,157.41,0.06]
[1752126115732,35.5234843,157.42,157.41,0.06]
[1752126120966,31.80234466,157.42,157.41,0.06]
[1752126121171,67.4834843,157.42,157.41,0.06]
[1752126121461,60.82538305,157.42,157.41,0.06]
[1752126121758,67.48392494,157.42,157.41,0.06]
[1752126122955,35.52392494,157.42,157.41,0.06]
[1752126123957,31.8027853,157.42,157.41,0.06]
[1752126138960,35.52392494,157.42,157.41,0.06]
[1752126143972,35.54315966,157.42,157.41,0.06]
[1752126150169,31.82202002,157.42,157.41,0.06]
[1752126150356,35.54315966,157.42,157.41,0.06]
[1752126152887,31.82202002,157.42,157.41,0.06]
[1752126153176,35.54315966,157.42,157.41,0.06]
[1752126172068,35.54315966,157.42,157.41,1e-08]
[1752126191414,165.19181043,157.41,157.4,1e-08]
[1752126191588,165.19181043,157.41,157.39,1e-08]
[1752126191589,233.53072668,157.41,157.39,1e-08]
[1752126191907,18.79181043,157.39,157.38,0.06]
[1752126192141,61.13072668,157.39,157.38,0.06]
[1752126192686,87.13072668,157.39,157.38,1e-08]
[1752126193199,93.48437049,157.39,157.38,1e-08]
[1752126195998,93.56702715,157.39,157.38,1e-08]
[1752126201215,93.56702715,157.39,157.31,8.289215]
[1752126201216,18.79181043,157.35,157.31,1.893315]